Cogmind - Beta 11 X8 @@@ ROGUE MODE // 2021.12.08 @ 21:52:04 Player: thingamajigger Result: Self-destructed Performance ------------- Evolutions (1) 500 Regions Visited (3) 600 Robots Destroyed (30) 150 Value Destroyed (616) 616 Prototype IDs (0) 0 Alien Tech Used (0) 0 Bonus (0) 0 TOTAL SCORE: 1866 Bonus ------- None Cogmind --------- Core Integrity 307/400 Matter 126/300 Energy 100/100 System Corruption 0% Temperature Cool (0) Movement Treading (400) Ox3 Location -9/Materials Parts ------- > --- POWER (1) -------- (None) > --- PROPULSION (2) --- Light Treads Wheel > --- UTILITY (3) ------ Huge Storage Unit > --- WEAPON (3) ------- (None) > --- INVENTORY (25) --- Large Storage Unit Datajack Peak State ------------ > --- POWER ------------ (None) > --- PROPULSION ------- Light Treads Wheel > --- UTILITY ---------- Huge Storage Unit > --- WEAPON ----------- Medium Laser Slug Cannon Rocket Launcher > --- INVENTORY -------- Large Storage Unit Datajack [Rating: 10] Favorites ----------- Power Ion Engine Engine Ion Engine Propulsion Light Treads Treads Light Treads Wheel Wheel Utility Targeting Computer Storage Large Storage Unit Processor Targeting Computer Weapon Light Assault Rifle Energy Gun Medium Laser Ballistic Gun Light Assault Rifle Ballistic Cannon Slug Cannon Launcher Grenade Launcher Build | -11 -10 -10 -9 ------- Run | Scr Mat Min Mat Slots Evolved 2 | . . . 2 Power . | . . . . Propulsion . | . . . . Utility 1 | . . . 1 Weapon 1 | . . . 1 Parts Attached 18 | 6 6 2 4 Power 1 | 1 . . . Engine 1 | 1 . . . Core . | . . . . Reactor . | . . . . Propulsion 4 | 2 . 1 1 Treads 3 | 2 . . 1 Leg . | . . . . Wheel 1 | . . 1 . Hover . | . . . . Flight . | . . . . Utility 5 | 1 3 . 1 Device . | . . . . Storage 4 | 1 2 . 1 Processor 1 | . 1 . . Hackware . | . . . . Protection . | . . . . Artifact . | . . . . Weapon 8 | 2 3 1 2 Energy Gun 2 | . 1 . 1 Energy Cannon . | . . . . Ballistic Gun 3 | 2 1 . . Ballistic Cannon 1 | . . 1 . Launcher 2 | . 1 . 1 Special Weapon . | . . . . Impact Weapon . | . . . . Slashing Weapon . | . . . . Piercing Weapon . | . . . . Special Melee Weapon . | . . . . Unidentified Prototypes . | . . . . Parts Lost 10 | . 4 3 3 Power 1 | . 1 . . Propulsion 2 | . 1 1 . Utility 1 | . . 1 . Weapon 6 | . 2 1 3 Highest Loss Streak 3 | . 3 3 3 Average Slot Usage (%) 71 | . 87 52 39 Engine 5 | . 9 . . Treads 18 | . 26 8 . Wheel 2 | . . 3 11 Storage 12 | . 14 8 11 Processor 7 | . 8 8 . Energy Gun 1 | . . 2 3 Ballistic Gun 15 | . 22 8 . Ballistic Cannon 4 | . . 11 11 Launcher 3 | . 4 . 1 Naked Turns . | . . . . Heaviest Build 93 | 12 27 28 93 Greatest Support 40 | 40 40 20 10 Greatest Overweight (x) 9 | . 1 2 9 Average Overweight (x) . | . . . 7 Largest Inventory Capacity 25 | 8 15 15 25 Average Capacity 13 | 7 11 11 24 Most Carried 5 | . 3 5 5 Average Carried 2 | . 1 4 3 Final Capacity 25 | 8 15 5 25 Final Carried 5 | . 3 5 2 Class Distribution -------------------- 100% | Mutant Dominant Class ---------------- Mutant | -10/Materials Mutant | -10/Mines Mutant | -9/Materials Resources | -11 -10 -10 -9 ----------- Run | Scr Mat Min Mat Matter Collected 539 | 184 181 174 . Remotely . | . . . . Salvage Created 518 | . 304 6 208 Parts 44 | . 33 . 11 Haulers Intercepted 1 | . . . 1 Recyclers Shooed . | . . . . Parts Field Recycled . | . . . . Retrieved Matter . | . . . . Parts Self-Destructed . | . . . . Prevented . | . . . . Kills | -11 -10 -10 -9 ------- Run | Scr Mat Min Mat Combat Hostiles Destroyed 22 | . 15 1 6 Guns 10 | . 8 . 2 Cannons 1 | . . 1 . AOE 11 | . 7 . 4 Classes Destroyed 9 | . 5 1 3 Worker 1 | . . . 1 Builder 3 | . 2 . 1 Hauler 1 | . . . 1 Recycler 1 | . . . 1 Operator 2 | . 2 . . Watcher 1 | . 1 . . Swarmer 9 | . 9 . . Grunt 12 | . 6 . 6 Assembled 1 | . . 1 . Best Kill Streak 7 | . 7 1 7 Combat Bots Only 6 | . 6 1 5 Max Kills in Single Turn 3 | . 2 1 3 Gunslinging . | . . . . Exploded 2 | . 2 . 2 Melee . | . . . . Uniques/NPCs Destroyed . | . . . . Combat | -11 -10 -10 -9 -------- Run | Scr Mat Min Mat Damage Taken 1449 | . 655 413 381 Core 304 | . 103 108 93 Absorbed by Shields . | . . . . Core Remaining (%) 57 | 100 . 15 . Volleys Fired 70 | . 47 4 19 Largest 2 | . 2 2 2 Hottest 98 | . 50 68 98 Shots Fired 126 | . 87 8 31 Gun 89 | . 73 4 12 Cannon 16 | . . 4 12 Launcher 21 | . 14 . 7 Special . | . . . . Kinetic 93 | . 73 8 12 Thermal 12 | . . . 12 Explosive 21 | . 14 . 7 Electromagnetic . | . . . . Robot Hit Streak 10 | . 9 10 5 Robot Miss Streak 5 | . 5 2 3 Penetration Max . | . . . . Secondary Targets 2 | . 2 . . Max Gunslinging Chain 1 | . 1 . . Shots Hit Robots 66 | . 47 4 15 Core Hits 63 | . 39 2 22 Critical Kills . | . . . . Critical Parts Destroyed 1 | . . 1 . Critical Strikes 2 | . . 1 1 Burn 1 | . . . 1 Destroy 1 | . . 1 . Melee Attacks . | . . . . Impact . | . . . . Slashing . | . . . . Piercing . | . . . . Sneak Attacks . | . . . . Combat Hostiles . | . . . . Follow-up Attacks . | . . . . Damage Inflicted 2028 | . 934 64 1030 Guns 421 | . 304 18 99 Cannons 226 | . . 44 182 Explosions 1377 | . 628 . 749 Melee . | . . . . Ramming 4 | . 2 2 . Kinetic 548 | . 304 62 182 Thermal 99 | . . . 99 Explosive 1377 | . 628 . 749 Electromagnetic . | . . . . Impact . | . . . . Slashing . | . . . . Piercing . | . . . . Highest Corruption 2 | . . 2 . Average Corruption 2 | . . 2 . Corruption Purged . | . . . . Effects 2 | . . 2 . Message Errors 1 | . . 1 . Data Loss (minor) 1 | . . 1 . Overload Shots . | . . . . Overflow Damage 46 | . 3 . 43 Projectiles . | . . . . Explosions 46 | . 3 . 43 Melee . | . . . . Knockbacks . | . . . . Impact . | . . . . Kinetic . | . . . . Secondary . | . . . . Self-Inflicted Damage 204 | . 163 1 40 Shots 8 | . 7 . 1 Rammed 2 | . 1 1 . Targets Rammed 2 | . 1 1 . Kicked . | . . . . Crushed . | . . . . Highest Temperature 213 | . 12 71 213 Average Temperature 73 | . 5 24 105 Received Heat Transfer 365 | . 120 80 165 Siege Activations . | . . . . Robots Corrupted . | . . . . Combat Hostiles . | . . . . Parts Fried . | . . . . Impact Corruptions . | . . . . Robots Melted . | . . . . Combat Hostiles . | . . . . Parts Melted . | . . . . Heat Transferred 370 | . . . 370 Parts Sabotaged . | . . . . Parts Stolen . | . . . . Parts Stripped . | . . . . Power Chain Reactions . | . . . . Missiles Intercepted . | . . . . Alert | -11 -10 -10 -9 ------- Run | Scr Mat Min Mat Peak Influence 221 | . 221 14 189 Initial 14 | . . 14 . Average 74 | . 116 7 37 Maximum Alert Level 1 | . 1 . . Low Security (%) 96 | 100 93 100 100 Level 1 3 | . 6 . . Level 2 . | . . . . Level 3 . | . . . . Level 4 . | . . . . Level 5 . | . . . . High Security . | . . . . Max Security . | . . . . Squads Dispatched 6 | . 4 . 2 Investigation 2 | . 2 . . Extermination . | . . . . Reinforcement 4 | . 2 . 2 Assault . | . . . . Garrison . | . . . . Intercept . | . . . . Construction Impeded 1 | . . . 1 Haulers Reinforced . | . . . . Active Scanning Responses . | . . . . Cargo Convoy Interrupts . | . . . . Stealth | -11 -10 -10 -9 --------- Run | Scr Mat Min Mat Distress Signals 2 | . 1 1 . Communications Jammed . | . . . . Distress Signals . | . . . . Times Spotted 54 | . 24 15 15 Peak Tracking Total 9 | . 6 9 7 Tactical Retreats . | . . . . Traps | -11 -10 -10 -9 ------- Run | Scr Mat Min Mat Traps Triggered 2 | . 2 . . Indirectly . | . . . . Trap Hack Attempts . | . . . . Triggered . | . . . . Disarmed . | . . . . Reprogrammed 5 | . . . 5 Reused . | . . . . Traps Extracted . | . . . . Installed . | . . . . Triggered . | . . . . Machines | -11 -10 -10 -9 ---------- Run | Scr Mat Min Mat Machines Disabled 2 | . 1 . 1 Max in Single Turn 1 | . 1 . 1 Machines Sabotaged . | . . . . Garrisons Compromised . | . . . . Overloaded Fab Kills . | . . . . Hacking | -11 -10 -10 -9 --------- Run | Scr Mat Min Mat Machines Accessed 6 | . 5 . 1 Terminals 6 | . 5 . 1 Fabricators . | . . . . Repair Stations . | . . . . Recycling Units . | . . . . Scanalyzers . | . . . . Garrison Access . | . . . . Total Hacks 20 | . 15 . 5 Successful 13 | . 9 . 4 Failed 7 | . 6 . 1 Catastrophic . | . . . . Database Lockouts . | . . . . Manual 13 | . 10 . 3 Terminals 20 | . 15 . 5 Fabricators . | . . . . Repair Stations . | . . . . Recycling Units . | . . . . Scanalyzers . | . . . . Garrison Access . | . . . . Terminal Hacks 10 | . 8 . 2 Record 1 | . 1 . . Robot Analysis 2 | . 2 . . Terminal Index 3 | . 2 . 1 Unreport Threat 1 | . 1 . . Locate Traps 2 | . 2 . . Reprogram Traps 1 | . . . 1 Fabricator Hacks . | . . . . Repair Station Hacks . | . . . . Recycling Unit Hacks . | . . . . Scanalyzer . | . . . . Garrison Access Hacks . | . . . . Unauthorized Hacks 3 | . 1 . 2 Terminals 3 | . 1 . 2 Track 1 | . 1 . . Botnet 1 | . . . 1 Operators 1 | . . . 1 Fabricators . | . . . . Repair Stations . | . . . . Recycling Units . | . . . . Scanalyzers . | . . . . Garrison Access . | . . . . Data Cores Recovered 1 | . 1 . . Used 1 | . 1 . . Hacking Detections 6 | . 5 . 1 Full Trace Events . | . . . . Feedback Events . | . . . . Feedback Blocked . | . . . . Robot Schematics Acquired . | . . . . Robots Built . | . . . . Authchips . | . . . . Time . | . . . . Total Robot Build Rating . | . . . . Part Schematics Acquired . | . . . . Parts Built . | . . . . Authchips . | . . . . Time . | . . . . Total Part Build Rating . | . . . . Parts Repaired . | . . . . Time . | . . . . Parts Recycled . | . . . . Recycled Matter . | . . . . Retrieved Matter . | . . . . Retrieved Components . | . . . . Parts Scanalyzed . | . . . . Part Schematics Acquired . | . . . . Parts Damaged . | . . . . Bothacking | -11 -10 -10 -9 ------------ Run | Scr Mat Min Mat Used RIF Installer . | . . . . Robots Hacked . | . . . . Non-combat . | . . . . Combat . | . . . . Robot Hacks Applied . | . . . . Relay Couplers Released . | . . . . Fabnet Peak Effective % . | . . . . Robots Rewired . | . . . . Allies Hacked . | . . . . Hacks Repelled . | . . . . Allies | -11 -10 -10 -9 -------- Run | Scr Mat Min Mat Total Allies 3 | . . 3 . Largest Group 3 | . . 3 . Highest-Rated Group 40 | . . 40 . Highest-Rated Ally 16 | . . 16 . Total Orders . | . . . . Ally Attacks 1 | . . 1 . Total Damage 15 | . . 15 . Kills . | . . . . Allies Corrupted . | . . . . Allies Melted 1 | . . 1 . Intel | -11 -10 -10 -9 ------- Run | Scr Mat Min Mat Robot Analysis Total 2 | . 2 . . Derelict Logs Recovered 2 | . . 2 . Drone Launches . | . . . . Drone Recoveries . | . . . . Exploration | -11 -10 -10 -9 ------------- Run | Scr Mat Min Mat Turns Passed 1155 | 60 675 247 173 Spaces Moved 579 | 36 325 157 61 Core 24 | 5 . 19 . Treads 413 | 31 325 57 . Legs . | . . . . Wheels 142 | . . 81 61 Hover . | . . . . Flight . | . . . . Fastest Speed 50 | 50 160 80 80 Average Speed 162 | 144 166 146 189 Slowest Speed 240 | 160 240 240 215 Overloaded Moves . | . . . . Propulsion Burnouts . | . . . . Robots Hopped . | . . . . Cave-ins Triggered . | . . . . Exploration Rate (%) 32 | 3 81 32 13 Regions Visited 3 Branch Regions 1 Pre-discovered Areas 1 | . . 1 . Known Exits Taken . | . . . . Unknown Exits Taken 3 | 1 1 1 . Scrap Searched 1 | . . 1 . Spaces Dug . | . . . . Terrain Destroyed 100 | . 64 4 32 Melee . | . . . . Projectile 8 | . . 4 4 AOE 92 | . 64 . 28 Terrain Rammed . | . . . . Walls Destroyed . | . . . . Machines Disabled . | . . . . Actions | -11 -10 -10 -9 --------- Run | Scr Mat Min Mat Total 680 | 41 385 167 87 Wait 3 | . 2 . 1 Move 576 | 35 324 156 61 Hop . | . . . . Pick Up 5 | . 3 1 1 Fast Attach 12 | 6 3 2 1 Attach 5 | . 2 . 3 Detach 3 | . 1 2 . Swap 1 | . 1 . . Drop 3 | . 1 1 1 Fire 70 | . 47 4 19 Melee . | . . . . Ram 1 | . . 1 . Kick . | . . . . Crush 1 | . 1 . . Escape Stasis . | . . . . Rewire . | . . . . Trap . | . . . . Miscellaneous . | . . . . Route ------- -11/Scrapyard -10/Materials (discovered 3 exits: *Mat x2 / [*Min]) -10/Mines -9/Materials History --------- Turn | Location | Event 5 | -11/Scrapyard | Discovered new exit (range 16) 61 | -11/Scrapyard | Entered Materials 311 | -10/Materials | Build established: Mutant 420 | -10/Materials | Discovered new exit (range 9) 531 | -10/Materials | Lost 3 parts (1p2w) 533 | -10/Materials | Discovered new exit (range 15) 681 | -10/Materials | Discovered new exit (range 12) 736 | -10/Materials | Entered Mines 780 | -10/Mines | A weapon hastily lodged in a ceiling crevice suddenly fell to the ground 803 | -10/Mines | Discovered new exit (range 6) 834 | -10/Mines | Learned location of Mines (-8) 834 | -10/Mines | Assisted by bots powering up and referring to "LRC-V3" 844 | -10/Mines | Learned Materials security intel 859 | -10/Mines | Assembled infested the area 864 | -10/Mines | Assisted by a Guerilla fighting off Assembled 880 | -10/Mines | Core integrity fell below 50% 892 | -10/Mines | Core integrity fell below 20% 919 | -10/Mines | Lost 3 parts (1n1u1w) 983 | -10/Mines | Entered Materials 983 | -9/Materials | Evolved 2 slots: Utility x1, Weapon x1 1156 | -9/Materials | Self-destructed Last Messages --------------- 01148_ Acquired Lgt. Treads. 01148_ U-05 Engineer builds a Wall. 01149_ R-06 Scavenger collects Shotgun. 01149_ K-01 Serf collects debris. 01150_ Slug Cannon destroyed. 01150_ T-07 Excavator is excavating. 01150_ Terminal disabled. 01150_ Destroyed Lgt. Ion Engine. 01150_ Destroyed Hover Unit. 01151_ U-05 Engineer lays Concrete. 01153_ U-05 Engineer builds a Wall. 01153_ K-01 Serf collects debris. 01153_ U-05 Engineer lays Concrete. 01154_ T-07 Excavator is excavating. 01154_ Rocket Launcher destroyed. 01154_ Destroyed Rocket Launcher. 01154_ Med. Laser destroyed. 01154_ Destroyed Med. Laser. 01154_ U-05 Engineer lays Concrete. 01155_ U-05 Engineer builds a Wall. Map ----- +----------------------------------------------------+ | | | | | | | | | | | | | ????###??????????????????????????????????????????? | | ??? #?????????????????????????????????????????? | | ?""" #?????????????????????????????????????????? | | """"" #?????????????????????????????????????????? | | """"" #??????????????? ?????????????????????????? | | """"" #??????????????" ?????????????????????????? | | """ #??######??? ?"" ?"???????????????????????? | | #?##!!!!##?? """ ?"???????????????????????? | | #?#! !#?? ? ???????????????????????? | | #?#! !#?## # ########???????????????? | | ###+###### ### ^ ?????????????? | | ^ ?????????????? | | ^ ???????????????? | | ^ ?????????????????? | | ################ T ^ ????????????????? | | ???????????????# u wgg ##???????????????????? | | ???????????????# #????????????????????? | | ???????????????# =! ##???????????????????? | | ???????????????# ! %[ #???????????????????? | | ???????????????# !!! @ #???????????????????? | | ???????????????# ! #????????????????? | | ???????????????# = t #????????????????? | | ???????????????# k ###????????????????? | | ???????????????# %% r ?????????????????? | | ???????????????# s =% ???????????????? | | ???????????????# [[ ?????????????? | | ???????????????#sss uu [ ####+????????????? | | ???????????????# ###### ## #????????????????? | | ???????????????# ??### ####;##? #????????????????? | | ???????????????#????? ???? ???#????????????????? | | ????????????????????? ????""????????????????????? | | ????????????????????# ????""#???????????????????? | | ????????????????????# ??????????????????????????? | | ????????????????????# ??????????????????????????? | | ?????????????????????????????????????????????????? | | ?????????????????????????????????????????????????? | | ?????????????????????????????????????????????????? | | ?????????????????????????????????????????????????? | | ?????????????????????????????????????????????????? | | ?????????????????????????????????????????????????? | | ?????????????????????????????????????????????????? | | ?????????????????????????????????????????????????? | | ?????????????????????????????????????????????????? | | ?????????????????????????????????????????????????? | +----------------------------------------------------+ Best States ------------- Heat Dissipation 28 Energy Generation 10 Energy Capacity 250 Matter Stores 290 Matter Capacity 300 Sight Range 16 Terrain Scan Density 10 Evasion (%) 44 Targeting Accuracy 5 Recoil Reduction 2 Item Schematics ----------------- None Robot Schematics ------------------ None Fabricated ------------ Nothing Alien Tech Used ----------------- None Achievements -------------- None Challenges ------------ None Game ------ Seed ThrowingLaserTendrils Manual? 0 Play Time 00:07:41 Cumulative 117.5 hours Start 2021.12.08 @ 21:45:25 End 2021.12.08 @ 21:52:04 Sessions 1 Manual Loads 0 Difficulty Rogue Special Mode None Game No. 206 Rogue 189 Adventurer 4 Explorer 13 Win Type - Total 8 Types 6/0/0/2/0/0/0/0/0 Lore% 62 Gallery% 80 Achievement% 67 Wizard Run 0 Options --------- ASCII 0 Keyboard 1 Movement Numpad Keybinds 0 Fullscreen 1 Font 18/SmallcapsGlow Map View 76x50 Tactical HUD 1 Map Filters NONE Filters NONE Steam 1 RUN: 22cbc1ba-3fcd-4671-80ed-45a46269c6d1